bitfinex/quotes_ETHUSD_20250603
["timestamp","ask_amount","ask_price","bid_price","bid_amount"]
[1748982488937,9.17320133,2606.7,2605.4,4.56315405]
[1748982489132,1.2071,2606.5,2605.4,4.56315405]
[1748982489714,1.2071,2606.5,2605.4,3.83811135]
[1748982490119,1.2071,2606.5,2605.5,3.8380295]
[1748982490323,1.2071,2606.5,2605.5,8.0]
[1748982490707,1.2071,2606.5,2605.3,4.88759345]
[1748982490910,1.2071,2606.5,2605.5,8.0]
[1748982491421,1.49221,2606.5,2605.5,11.83801835]
[1748982491611,1.49221,2606.5,2605.6,8.0]
[1748982492010,1.49221,2606.5,2605.5,1.644]
[1748982492396,1.49221,2606.5,2605.3,1.48625323]
[1748982492630,1.49221,2606.5,2605.3,1.04930662]
[1748982492843,1.2772,2606.3,2605.3,1.04930662]
[1748982493037,1.2772,2606.3,2605.4,8.0]
[1748982493196,1.2772,2606.3,2605.3,1.04930662]
[1748982493598,1.2772,2606.3,2605.4,8.0]
[1748982493799,1.2772,2606.3,2605.3,1.04930662]
[1748982494013,1.2772,2606.1,2605.4,8.0]
[1748982494737,1.2772,2606.1,2605.3,11.04930662]
[1748982494958,1.2772,2606.1,2605.3,1.04930662]
[1748982495545,1.2772,2606.1,2605.3,0.66666667]
[1748982495842,1.2772,2606.1,2605.4,0.35945762]
[1748982496042,1.2772,2606.1,2605.3,0.66666667]
[1748982496698,1.2772,2606.1,2605.4,3.83810235]
[1748982497001,1.2772,2606.1,2605.3,4.504977]
[1748982497199,1.2772,2606.1,2605.3,4.50497637]
[1748982497809,1.2772,2606.1,2605.4,0.359443]
[1748982498026,1.2772,2606.1,2605.3,4.8934312]
[1748982498227,1.2772,2606.1,2605.3,1.0551215]
[1748982498542,1.2772,2606.1,2605.4,3.83810294]
[1748982498733,1.2772,2606.1,2605.4,13.83810294]
[1748982498942,1.2772,2606.1,2605.4,3.83810294]
[1748982499455,1.2772,2606.1,2605.4,13.83810294]
[1748982499657,1.2772,2606.1,2605.5,9.67848849]
[1748982499958,1.2772,2606.1,2605.7,3.83774028]
[1748982500153,1.2772,2606.1,2605.6,3.83780045]
[1748982500920,1.2772,2606.1,2605.5,13.0111792]
[1748982501156,1.2149,2606.9,2605.9,3.83741531]
[1748982501327,1.2149,2606.7,2605.9,3.83741531]
[1748982501695,1.2149,2606.7,2606.1,3.83704591]
[1748982502430,1.2149,2607.8,2606.3,3.83685684]
[1748982502646,0.02,2607.9,2606.4,13.83661809]
[1748982502647,1.2149,2607.6,2606.4,13.83661809]
[1748982502967,1.2149,2607.6,2606.5,3.83648405]
[1748982503157,1.2308,2607.4,2606.5,3.83648405]
[1748982503366,1.2308,2607.4,2606.4,10.0]
[1748982503519,1.2308,2607.4,2606.3,6.5104992]
[1748982503718,1.2308,2607.4,2606.4,10.0]
[1748982503967,1.2308,2607.4,2606.3,3.611502]
[1748982504268,1.2308,2607.4,2606.4,10.0]
[1748982505926,1.2308,2607.4,2606.4,3.83670963]
[1748982506367,1.2308,2607.4,2606.4,13.83670963]
[1748982506526,1.2308,2607.4,2606.5,3.83652233]
[1748982506731,1.2308,2607.4,2606.6,3.83634635]
[1748982506983,1.2308,2607.4,2606.7,10.0]
[1748982507331,1.2308,2607.4,2606.4,8.0]
[1748982507639,1.2308,2607.4,2606.2,3.83693428]
[1748982507840,1.2723,2607.1,2606.2,9.643]
[1748982508354,1.2723,2607.1,2606.2,8.0]
[1748982508556,1.2723,2607.1,2606.0,0.51]
[1748982508768,1.2723,2607.1,2606.0,8.0]
[1748982508943,1.2723,2607.1,2605.9,8.0]
[1748982509295,10.81620133,2607.2,2605.3,5.2872353]
[1748982509296,1.2723,2606.5,2605.4,5.004354]
[1748982509507,1.2723,2606.5,2605.5,10.0]
[1748982509651,1.2723,2606.5,2605.3,1.0551215]
[1748982509991,1.2723,2606.5,2605.5,10.0]
[1748982510145,1.2723,2606.3,2605.4,2.897008]
[1748982510351,1.2723,2606.3,2605.3,11.0551215]
[1748982510585,1.2723,2606.3,2605.4,13.078816]
[1748982510888,1.2723,2606.3,2605.9,10.0]
[1748982511190,1.2723,2606.3,2605.9,13.83740503]
[1748982511344,1.2932,2606.9,2606.1,13.83708226]
[1748982511551,1.70770501,2606.9,2605.9,10.13038429]
[1748982511903,1.2932,2606.9,2606.1,3.83704906]
[1748982512189,1.2932,2606.9,2606.1,3.83708594]
[1748982512861,1.2932,2606.9,2606.3,3.83677295]
[1748982513065,1.2932,2606.9,2606.2,3.83691378]
[1748982513264,1.2932,2606.9,2606.0,20.74868734]
[1748982513489,1.2932,2606.9,2606.0,16.91143496]
[1748982513690,1.2932,2606.9,2606.0,20.74868687]
[1748982513989,1.2932,2606.9,2606.0,1.643]
[1748982514198,1.2932,2606.9,2605.7,1.643]
[1748982514498,1.2755,2606.7,2605.6,10.0]
[1748982514860,1.2755,2606.7,2605.5,11.643]
[1748982515352,1.2755,2606.7,2605.6,8.0]
[1748982515550,1.2927,2606.5,2605.6,11.83782728]
[1748982516770,1.2927,2606.5,2605.4,0.51]
[1748982516954,1.2927,2606.5,2605.4,13.99109361]
[1748982517989,1.2927,2606.5,2605.4,8.51]
[1748982518189,1.2927,2606.5,2605.6,8.0]
[1748982518401,1.2927,2606.5,2605.4,10.0]
[1748982518694,1.2927,2606.5,2605.3,4.89345008]
[1748982518869,1.2927,2606.5,2605.3,14.89345008]
[1748982519069,1.2927,2606.5,2605.4,10.0]
[1748982519278,1.2927,2606.5,2605.4,8.0]
[1748982519472,0.55,2606.4,2605.3,9.0551215]
[1748982519788,1.2385,2606.2,2605.3,1.0551215]
[1748982520022,1.2385,2606.2,2605.3,0.66666667]
[1748982520156,1.2385,2606.0,2605.3,0.66666667]
[1748982522860,1.2981,2605.7,2605.3,0.66666667]
[1748982523059,9.17320133,2605.5,2605.3,0.66666667]
[1748982523315,1.2981,2605.4,2605.3,0.66666667]
[1748982523456,2.34523013,2605.4,2605.3,0.66666667]
[1748982523660,1.2981,2605.4,2605.3,0.66666667]
[1748982524260,1.8481,2605.3,2605.1,0.02]
[1748982524473,11.02130133,2605.2,2605.1,0.02]
[1748982524901,1.2981,2605.2,2605.1,0.02]
[1748982530615,1.8481,2605.2,2605.1,0.02]
[1748982530775,2.95023013,2605.2,2605.1,0.02]
[1748982534888,1.8481,2605.2,2605.1,0.02]
[1748982535312,11.02130133,2605.2,2605.1,0.02]
[1748982535633,17.35230133,2605.2,2605.1,0.02]
[1748982536042,0.55,2604.5,2604.1,0.53]
[1748982536355,0.55,2604.3,2604.1,0.02]
[1748982536644,1.3156,2604.2,2603.5,10.0]
[1748982536868,1.3156,2604.2,2603.3,10.9664]
[1748982537035,1.3156,2604.2,2603.4,8.0]
[1748982537404,1.3156,2604.2,2603.3,11.76511681]
[1748982537638,1.3156,2604.2,2603.4,3.84113082]
[1748982537953,1.3156,2604.2,2603.7,8.0]
[1748982538316,1.3156,2604.2,2603.8,3.84044305]
[1748982538553,1.3156,2604.2,2603.7,3.84060734]
[1748982538751,1.3051,2604.9,2604.1,3.83996596]
[1748982539049,1.3051,2604.9,2604.3,1.1215]
[1748982539262,1.2165,2605.4,2604.5,8.0]
[1748982539460,0.28745,2605.3,2604.5,3.83949097]
[1748982539667,0.28745,2605.3,2604.3,4.96120533]
[1748982539850,0.28745,2605.3,2604.5,3.83941717]
[1748982540011,0.28745,2605.3,2604.6,3.83934432]
[1748982540513,0.28745,2605.3,2604.7,8.0]
[1748982540745,0.28745,2605.3,2604.6,8.0]
[1748982541265,0.28745,2605.3,2604.4,11.83961142]
[1748982541766,0.28745,2605.3,2604.6,3.83932219]
[1748982541962,0.28745,2605.3,2604.4,18.0]
[1748982542119,1.241,2605.2,2604.6,1.658]
[1748982542446,1.241,2605.2,2604.6,8.0]
[1748982542647,1.241,2605.2,2604.4,1.658]
[1748982542648,1.241,2605.2,2604.4,11.658]
[1748982543626,1.241,2605.2,2604.4,15.49764285]
[1748982543831,1.241,2605.2,2604.4,11.658]
[1748982544029,1.241,2605.2,2604.4,18.0]
[1748982544345,1.241,2605.2,2604.4,9.658]
[1748982545142,1.241,2605.2,2604.3,0.51]
[1748982545342,1.2691,2605.0,2604.3,0.51]
[1748982547868,1.2478,2604.8,2604.3,0.51]
[1748982548035,1.2315,2604.6,2603.8,8.0]
[1748982548358,1.2315,2604.6,2603.5,8.6509]
[1748982548559,1.2315,2604.4,2603.5,3.84090329]
[1748982548728,1.2315,2604.4,2603.6,1.658]
[1748982549549,0.55,2604.1,2603.3,8.282]
[1748982549748,1.2315,2604.0,2603.4,8.0]
[1748982549948,1.2315,2604.0,2603.3,8.282]
[1748982551161,1.2315,2604.0,2603.4,8.0]
[1748982552635,1.2315,2604.0,2603.3,8.282]
[1748982552835,1.2315,2604.0,2603.4,1.659]
[1748982553035,1.2315,2604.0,2603.3,10.31519611]
[1748982554170,1.2315,2604.0,2603.4,1.674]
[1748982554736,1.2315,2604.0,2603.2,1.674]
[1748982554936,1.2315,2604.0,2603.2,2.05130418]
[1748982555133,1.2315,2604.0,2603.2,5.89265221]
[1748982555333,1.2315,2604.0,2603.3,8.0]
[1748982556279,1.3267,2603.9,2603.2,0.88730418]
[1748982558210,1.3267,2603.9,2603.2,8.88730418]
[1748982558493,1.3267,2603.9,2603.2,12.72865863]
[1748982559360,1.3267,2603.9,2603.2,8.88730418]
[1748982559985,1.3267,2603.9,2603.3,8.0]
[1748982560845,1.3267,2603.9,2603.2,0.88730418]
[1748982561253,1.3267,2603.9,2603.2,10.88730418]
[1748982561767,1.3267,2603.9,2603.2,0.88730418]
[1748982561997,1.3267,2603.9,2603.2,10.88730418]
[1748982562177,1.3267,2603.9,2603.2,0.88730418]
[1748982562483,1.3267,2603.9,2603.2,0.37730418]
[1748982562789,1.3267,2603.9,2603.0,1.674]
[1748982564085,1.3267,2603.9,2603.0,5.51569507]
[1748982564281,1.3267,2603.9,2602.9,5.51585616]
[1748982564507,0.55,2603.8,2602.6,9.17320133]
[1748982564645,0.55,2603.6,2602.5,5.279753]
[1748982564840,1.3348,2603.5,2602.5,8.0]
[1748982565080,1.3348,2603.5,2602.8,8.0]
[1748982565286,1.3348,2603.5,2602.6,9.674]
[1748982565594,1.3348,2603.5,2602.7,8.0]
[1748982566283,1.3348,2603.5,2602.7,12.80199663]
[1748982566452,1.3348,2603.5,2602.8,3.84195472]
[1748982566787,1.3348,2603.5,2602.7,12.80198369]
[1748982567308,1.3348,2603.5,2602.7,8.95990758]
[1748982567987,1.3348,2603.5,2602.7,12.80206046]
[1748982568162,1.3348,2603.5,2602.7,8.95990758]
[1748982568363,1.3348,2603.5,2602.7,12.8020449]
[1748982568562,1.3348,2603.5,2602.7,8.95990758]
[1748982568871,1.3348,2603.5,2602.7,12.80205586]
[1748982569073,1.3348,2603.5,2602.7,8.95990758]
[1748982569276,1.3348,2603.5,2603.0,8.0]
[1748982569678,1.3348,2603.5,2602.9,8.0]
[1748982569988,1.3348,2603.5,2603.0,8.0]
[1748982570190,1.3301,2603.9,2603.3,8.0]
[1748982570510,1.3301,2603.9,2603.4,5.51504748]
[1748982571163,1.3301,2603.9,2603.4,1.674]
[1748982572091,1.3301,2603.9,2603.5,8.0]
[1748982572389,1.3301,2603.9,2603.4,1.674]
[1748982572603,1.3301,2603.9,2603.4,5.515062]
[1748982573089,1.3301,2603.9,2603.4,5.51511828]
[1748982573495,1.3301,2603.9,2603.2,1.674]
[1748982574054,0.55,2603.8,2603.1,1.674]
[1748982574366,1.3009,2603.7,2602.8,1.674]
[1748982574992,1.3009,2604.1,2603.4,9.17320133]
[1748982575179,1.3009,2604.1,2603.5,9.674]
[1748982576109,1.3009,2604.1,2603.5,1.674]
[1748982576501,1.3009,2604.1,2603.3,0.51]
[1748982576833,1.3009,2604.1,2603.5,1.674]
[1748982577884,1.3009,2604.1,2603.3,0.51]
[1748982578087,1.3009,2604.1,2603.4,1.674]
[1748982580700,1.3009,2604.1,2603.5,8.0]
[1748982580884,1.3009,2604.1,2603.4,9.674]
[1748982581499,1.3009,2604.1,2603.4,1.674]
[1748982582092,1.3009,2604.1,2603.3,4.351163]
[1748982582306,1.3009,2604.1,2603.4,1.674]
[1748982584115,1.3009,2604.1,2603.3,0.51]
[1748982584429,1.3009,2604.1,2603.4,1.68]
[1748982586395,1.3009,2604.1,2603.3,0.51]
[1748982586600,1.3009,2604.1,2603.3,2.19]
[1748982586797,1.3009,2604.1,2603.3,0.51]
[1748982587039,1.3018,2603.9,2603.0,1.68]
[1748982587604,1.3018,2603.9,2602.7,1.12056807]
[1748982587809,1.3018,2603.9,2602.8,1.68]
[1748982588106,1.3018,2603.9,2602.6,10.0]
[1748982588309,1.3018,2603.9,2602.7,1.68]
[1748982588619,1.52182101,2603.8,2602.6,10.0]
[1748982588820,1.52182101,2603.8,2602.8,1.68]
[1748982589204,1.52182101,2603.8,2602.7,10.0]
[1748982589442,1.52182101,2603.8,2602.8,1.68]
[1748982589648,1.52182101,2603.8,2602.8,5.52193616]
[1748982590026,1.52182101,2603.8,2602.8,11.68]
[1748982590343,1.52182101,2603.8,2602.8,1.68]
[1748982590546,1.52182101,2603.8,2602.8,2.19]
[1748982591153,1.52182101,2603.8,2602.8,12.19]
[1748982591736,1.52182101,2603.8,2602.8,2.19]
[1748982591939,1.52182101,2603.8,2602.8,12.19]
[1748982592552,1.52182101,2603.8,2602.8,2.19]
[1748982592724,1.52182101,2603.8,2602.8,12.19]
[1748982592930,1.52182101,2603.8,2602.8,6.03193216]
[1748982593140,1.2869,2603.8,2603.0,9.17320133]
[1748982593445,1.2869,2603.8,2603.0,13.17843484]
[1748982593643,1.2869,2603.8,2603.1,3.84156187]
[1748982594164,1.2869,2603.8,2603.0,13.17845678]
[1748982594531,1.2869,2603.8,2603.1,3.84151503]
[1748982594941,1.2869,2603.8,2603.2,10.0]
[1748982595239,1.2869,2603.8,2603.1,3.562221]
[1748982595552,1.2869,2603.8,2603.2,10.0]
[1748982595752,1.2869,2603.8,2603.0,13.17845372]
[1748982595753,1.2869,2603.8,2603.1,3.84155928]
[1748982595933,1.2869,2603.8,2603.2,1.68]
[1748982597530,1.3353,2604.5,2603.3,13.84120417]
[1748982597856,1.3353,2604.5,2603.4,11.68]
[1748982598042,1.3353,2604.5,2603.4,1.68]
[1748982598255,1.3353,2604.5,2603.3,8.0]
[1748982598435,0.55,2604.8,2602.4,4.23095057]
[1748982598436,1.2977,2604.1,2602.9,1.68]
[1748982599265,1.2977,2604.1,2602.9,5.52185282]
[1748982599426,1.3977,2604.0,2603.0,3.84158949]
[1748982599637,1.3977,2604.0,2603.1,10.0]
[1748982599845,1.3977,2604.0,2603.1,3.84155478]
[1748982600236,1.3977,2604.0,2603.3,13.01441395]
[1748982600478,1.3977,2604.0,2603.3,9.17320133]
[1748982600689,1.3977,2604.0,2603.2,8.0]
[1748982601182,1.3977,2604.0,2603.2,11.84140914]
[1748982601337,1.3977,2604.0,2603.2,11.84128319]
[1748982601538,1.3977,2604.0,2603.4,10.0]
[1748982601856,1.3977,2604.0,2603.5,1.68]
[1748982602176,1.3977,2604.0,2603.2,1.68]
[1748982602694,1.3977,2604.0,2602.9,10.0]
[1748982602973,1.3977,2604.0,2603.2,1.68]
[1748982603201,9.17320133,2604.4,2603.1,1.68]
[1748982603202,0.55,2603.9,2603.1,1.68]
[1748982603341,1.2801,2603.8,2602.5,0.2082]
[1748982603680,1.2801,2603.8,2602.9,3.8418483]
[1748982603856,1.2801,2603.8,2602.8,8.0]
[1748982604057,1.2801,2603.8,2603.0,1.68]
[1748982605480,1.2801,2603.8,2603.3,3.84127837]
[1748982605844,1.2801,2603.8,2603.0,10.85320133]
[1748982605845,1.2801,2603.8,2603.4,3.8411304]
[1748982606458,1.3863,2604.7,2603.5,10.0]
[1748982606669,1.3678,2604.5,2603.5,1.68]
[1748982606880,1.3678,2604.5,2603.6,1.68]
[1748982607179,1.3678,2604.5,2603.4,8.0]
[1748982607381,1.3678,2604.5,2603.5,1.68]
[1748982607888,1.3678,2604.5,2603.5,5.52087068]
[1748982608094,1.3678,2604.5,2603.5,1.68]
[1748982608409,1.3678,2604.5,2603.6,8.0]
[1748982608690,1.3678,2604.5,2603.5,1.68]
[1748982608893,1.3678,2604.5,2603.3,4.04936578]
[1748982609059,1.3678,2604.5,2603.4,11.84112683]
[1748982609265,1.3678,2604.5,2603.5,1.68]
[1748982609584,1.3678,2604.5,2603.6,8.0]
[1748982609742,9.17320133,2604.4,2603.1,12.129562]
[1748982609941,9.17320133,2604.4,2603.1,1.68]
[1748982609942,1.2942,2604.1,2603.1,1.68]
[1748982610184,0.55,2604.0,2603.1,9.68]
[1748982610385,1.2942,2603.9,2603.1,10.90503549]
[1748982610570,1.2942,2603.9,2603.1,1.22503549]
[1748982610767,1.2942,2603.9,2603.1,2.90503549]
[1748982611183,1.2942,2603.9,2603.1,1.68]
[1748982612591,1.2942,2603.9,2602.8,8.0]
[1748982612793,1.2942,2603.9,2602.9,1.68]
[1748982613158,1.2942,2603.9,2603.0,1.68]
[1748982613691,1.2942,2603.9,2602.4,1.61350978]
[1748982613692,9.17320133,2603.5,2602.4,1.61350978]
[1748982613858,9.17320133,2603.1,2602.4,1.22503549]
[1748982614042,1.2772,2603.0,2602.4,1.22503549]
[1748982614246,9.17320133,2602.8,2602.4,1.22503549]
[1748982614476,1.3743,2602.7,2602.4,1.22503549]
[1748982614895,1.3743,2602.7,2602.1,0.02]
[1748982615096,1.05475013,2602.6,2602.1,0.02]
[1748982615251,1.3743,2602.5,2602.1,0.02]
[1748982615882,1.3743,2602.5,2601.5,0.51]
[1748982616094,7.67080133,2601.8,2601.1,0.02]
[1748982616293,9.17320133,2601.2,2599.1,11.0556786]
[1748982616501,1.3786,2600.9,2599.2,0.32116905]
[1748982616677,1.4113,2600.2,2599.2,0.32116905]
[1748982617004,1.4113,2599.9,2599.2,0.32116905]
[1748982617591,1.4113,2599.9,2599.3,10.0]
[1748982617791,1.4113,2599.9,2599.3,5.81938169]
[1748982617995,1.4113,2599.9,2599.3,11.37235802]
[1748982618166,1.31,2600.8,2599.8,3.84641847]
[1748982618359,1.31,2600.8,2599.4,0.20021468]
[1748982618579,1.3288,2600.5,2599.1,11.0556786]
[1748982618781,9.17320133,2599.2,2599.1,8.69997267]
[1748982619005,11.13220133,2599.2,2599.1,8.69997267]
[1748982619203,1.3288,2599.4,2599.1,8.69997267]
[1748982619609,1.3288,2599.2,2597.2,0.97507886]
[1748982619825,0.38100214,2599.2,2597.2,1.2957]
[1748982620122,1.3517,2599.0,2597.6,9.17320133]
[1748982620328,1.3517,2600.1,2598.2,2.30234]
[1748982620530,9.17320133,2599.9,2598.3,10.0]
[1748982620820,1.3609,2599.5,2598.3,8.0]
[1748982620997,1.3609,2599.5,2598.6,8.0]
[1748982621327,1.3609,2599.5,2598.7,1.8]
[1748982621510,1.3609,2599.5,2598.6,8.0]
[1748982621903,1.3609,2599.5,2598.5,10.0]
[1748982622098,1.3609,2599.5,2598.4,10.042]
[1748982622314,1.3609,2599.5,2598.5,2.042]
[1748982622512,1.3716,2599.9,2598.8,3.84792373]
[1748982622832,1.3716,2599.9,2599.1,8.0]
[1748982623032,1.3716,2599.9,2599.2,2.042]
[1748982624127,9.17320133,2600.4,2599.2,2.042]
[1748982624128,1.3716,2600.3,2599.3,8.0]
[1748982624332,0.31949304,2600.2,2599.3,11.84715374]
[1748982624517,0.31949304,2600.2,2599.4,1.38891537]
[1748982625335,0.31949304,2600.2,2599.5,8.0]
[1748982625690,0.31949304,2600.2,2599.6,8.0]
[1748982625992,1.3716,2600.3,2599.5,8.0]
[1748982626392,1.3716,2600.3,2599.6,3.84669776]
[1748982626702,1.3716,2600.3,2598.9,0.38330751]
[1748982627041,9.57699171,2600.0,2598.6,1.2946]
[1748982627346,1.3255,2599.9,2598.7,10.0]
[1748982627542,1.3255,2599.9,2598.6,3.84822206]
[1748982628031,1.3255,2599.9,2598.6,8.0]
[1748982628215,1.3255,2599.9,2598.7,0.8]
[1748982628423,1.3255,2599.9,2598.7,3.84796907]
[1748982628734,1.3255,2599.9,2598.7,3.84796826]
[1748982629046,1.3255,2599.9,2599.3,3.84718271]
[1748982629344,1.3255,2599.9,2599.1,3.84739214]
[1748982629729,1.3255,2599.9,2599.1,5.88939214]
[1748982630104,1.3255,2599.9,2599.2,0.58893921]
[1748982630437,1.3255,2599.9,2599.2,3.84725539]
[1748982630626,1.3255,2599.9,2599.3,8.0]
[1748982630804,0.27286826,2599.8,2599.3,8.0]
[1748982631299,0.27286826,2599.8,2599.3,3.84716598]
[1748982631506,0.27286826,2599.8,2599.4,3.84698228]
[1748982631831,0.27286826,2599.8,2599.2,8.0]
[1748982632015,0.27286826,2599.8,2599.1,0.51]
[1748982632202,1.3255,2599.9,2599.1,0.51]
[1748982632929,1.3255,2599.9,2599.1,4.35743369]
[1748982633136,1.3255,2599.9,2599.1,0.51]
[1748982633496,1.3255,2599.9,2599.2,3.84725691]
[1748982633853,1.3255,2599.9,2599.1,4.35744265]
[1748982633992,1.3255,2599.9,2599.2,3.8473333]
[1748982634193,1.3255,2599.9,2599.1,4.35744932]
[1748982634447,1.3255,2599.9,2599.3,3.84716668]
[1748982634599,1.3255,2599.9,2599.2,4.48728801]
[1748982634794,1.3255,2599.9,2599.1,8.0]
[1748982635049,1.3255,2599.9,2599.6,3.84673096]
[1748982635352,1.2801,2600.7,2599.7,3.8464942]
[1748982635551,0.69279988,2600.6,2599.4,10.0]
[1748982635848,0.36048988,2600.5,2599.6,3.84668653]
[1748982636143,0.33231,2600.6,2599.9,3.84619021]
[1748982636300,1.2801,2600.7,2599.8,3.84644972]
[1748982636301,1.2801,2600.7,2599.8,3.84635758]
[1748982636836,1.2801,2600.7,2599.7,2.043]
[1748982637709,1.2801,2600.7,2599.9,8.0]
[1748982638245,1.2801,2600.7,2599.7,2.043]
[1748982638412,1.2801,2600.7,2599.1,2.49395]
[1748982638739,1.3747,2600.3,2599.2,6.13971531]
[1748982639037,1.3747,2600.3,2599.2,2.292395]
[1748982639208,0.36059567,2600.2,2599.2,2.292395]
[1748982639407,1.3747,2600.3,2599.2,0.249395]
[1748982639735,0.19247,2600.2,2599.2,0.249395]
[1748982640248,0.19247,2600.2,2599.4,8.0]
[1748982640598,0.19247,2600.2,2599.2,4.09661072]
[1748982640824,0.19247,2600.2,2599.3,8.0]
[1748982641002,1.3546,2599.7,2599.1,0.51]
[1748982641227,1.3546,2599.7,2598.5,3.8483717]
[1748982641540,1.3546,2599.7,2598.7,8.0]
[1748982641840,1.3546,2599.7,2598.8,5.03271741]
[1748982642212,1.3546,2599.7,2598.8,5.03274141]
[1748982642972,1.3546,2599.7,2598.5,10.0]
[1748982643258,1.3546,2599.7,2598.7,8.0]
[1748982643400,1.3546,2599.7,2598.6,3.84816163]
[1748982643604,1.3546,2599.7,2598.7,8.0]
[1748982643827,1.3506,2599.3,2598.1,0.02]
[1748982644033,0.36039422,2599.2,2598.1,0.65070953]
[1748982644239,0.36039422,2599.1,2598.1,0.65070953]
[1748982644545,1.3506,2599.3,2598.1,0.65070953]
[1748982644744,0.55,2599.0,2598.1,0.02]
[1748982644950,1.7109186,2598.9,2598.1,0.02]
[1748982645104,0.3603186,2598.8,2598.1,0.02]
[1748982645309,0.3603186,2598.7,2598.1,0.02]
[1748982645506,0.3603186,2598.6,2598.1,0.02]
[1748982645726,1.3506,2598.9,2598.1,0.02]
[1748982645906,1.3506,2598.9,2598.2,4.20927912]
[1748982646114,1.3506,2598.9,2598.2,3.84878283]
[1748982646306,1.3506,2598.9,2598.1,11.86890542]
[1748982646605,1.3506,2598.9,2598.1,3.86891104]
[1748982646823,1.3506,2598.9,2598.4,3.84843217]
[1748982647021,1.3506,2598.9,2598.5,3.84829696]
[1748982647246,1.3506,2598.9,2598.4,3.84850795]
[1748982647470,1.3506,2598.9,2598.4,3.84852216]
[1748982647616,1.3506,2598.9,2598.5,3.84826226]
[1748982647805,1.3506,2598.9,2598.6,4.20860573]
[1748982648116,1.3506,2598.9,2598.3,13.89165896]
[1748982648323,1.3506,2598.9,2598.4,3.84852216]
[1748982648524,1.3506,2598.9,2598.3,5.89165896]
[1748982648854,1.3506,2598.9,2598.5,3.84836861]
[1748982649005,1.3506,2598.9,2598.2,4.000092]
[1748982649210,1.3506,2598.9,2598.4,8.0]
[1748982649511,1.3506,2598.9,2598.3,8.0]
[1748982649865,1.3506,2598.9,2598.3,5.8916595]
[1748982650036,1.3506,2598.9,2598.4,3.84843121]
[1748982650423,1.3506,2598.9,2598.3,8.0]
[1748982650960,1.3506,2598.9,2598.3,11.84863984]
[1748982651169,1.3506,2598.9,2598.4,3.84842658]
[1748982651706,1.3506,2598.9,2598.4,8.0]
[1748982651949,1.3506,2598.9,2598.4,3.84851766]
[1748982652609,1.3506,2598.9,2598.3,11.84855177]
[1748982652856,1.3506,2598.9,2598.4,3.84851353]
[1748982653023,1.3506,2598.9,2598.5,0.36040937]
[1748982653208,1.3506,2598.9,2598.6,0.36040899]
[1748982653406,1.3506,2598.9,2598.1,0.53]
[1748982654232,1.3506,2598.9,2598.1,0.02]
[1748982654951,1.4061,2598.7,2598.1,0.02]
[1748982655156,0.19561,2598.6,2598.1,0.02]
[1748982655309,0.19561,2598.6,2598.2,0.36049302]
[1748982655515,0.19561,2598.6,2598.1,0.02]
[1748982655918,1.4061,2598.7,2598.1,0.02]
[1748982656121,1.4061,2598.7,2598.2,3.84873371]
[1748982656321,1.4061,2598.7,2598.1,10.02]
[1748982656573,1.4061,2598.7,2598.1,0.02]
[1748982656722,1.4061,2598.7,2598.2,0.36045051]
[1748982656928,1.4061,2598.7,2598.2,3.84881651]
[1748982657227,1.4061,2598.5,2598.1,0.02]
[1748982657466,1.9561,2598.2,2598.1,0.02]
[1748982658150,1.4061,2598.2,2598.1,0.02]
[1748982659340,1.4541,2598.1,2598.0,0.395]
[1748982660473,2.0041,2598.1,2598.0,0.395]
[1748982660972,1.449,2597.9,2597.1,0.02]
[1748982661272,0.55,2597.4,2597.1,0.02]
[1748982661471,1.6489,2597.3,2597.1,0.02]
[1748982661676,1.449,2597.3,2597.2,0.36069143]
[1748982661972,1.449,2597.3,2597.2,0.36066147]
[1748982662283,1.999,2597.3,2597.2,0.36066147]
[1748982663073,1.9739,2597.3,2597.2,0.36066147]
[1748982663381,1.9739,2597.2,2597.1,0.02]
[1748982663583,2.17129,2597.2,2597.1,0.02]
[1748982664259,0.55,2597.0,2596.3,0.005]
[1748982664474,11.55658146,2596.4,2596.3,0.005]
[1748982664692,1.9739,2596.4,2596.3,0.005]
[1748982664832,1.62129,2596.4,2596.3,0.005]
[1748982665032,1.4239,2596.4,2596.3,0.005]
[1748982665558,1.4239,2597.1,2596.4,4.26748]
[1748982665869,1.4239,2598.0,2596.7,3.85100885]
[1748982666070,0.31949304,2597.9,2596.8,0.38510089]
[1748982666272,0.31949304,2597.9,2596.8,10.38510089]
[1748982666474,0.31949304,2597.9,2596.9,2.016]
[1748982666632,0.31949304,2597.9,2596.8,0.38510089]
[1748982666833,1.4239,2597.8,2596.4,20.016]
[1748982667026,1.4239,2597.8,2596.6,8.0]
[1748982667232,1.4239,2597.8,2596.8,10.0]
[1748982667433,0.31925991,2597.7,2596.5,4.546919]
[1748982667627,0.31925991,2597.7,2596.7,3.85095037]
[1748982667843,1.3861,2597.6,2596.8,1.18509504]
[1748982668043,0.31925991,2597.5,2596.5,2.016]
[1748982668592,1.9361,2597.4,2596.3,0.005]
[1748982668898,0.55,2597.0,2596.3,0.005]
[1748982669038,1.3861,2596.9,2596.3,0.005]
[1748982669232,0.55,2596.7,2596.3,0.005]
[1748982669465,1.3861,2596.6,2596.3,0.005]
[1748982671379,1.9361,2596.4,2596.3,0.005]
[1748982672301,11.51878146,2596.4,2596.3,0.005]
[1748982672498,1.9361,2596.4,2596.3,0.005]
[1748982673094,1.3861,2596.4,2596.3,0.005]